Workbook

Sheet Лист1
B1: МО | D1: -0.02703 | H1: 0
B2: Дисперсия | D2: 0.99927 | H2: 1
B3: Комиссия | J3: 0.1
B5: Обычная рулетка | F5: Рулетка без зеро | J5: Комиссия | L5: Рулетка без зеро (с учетом комиссии )
B6: Равные шансы | F6: Равные шансы | J6: заведения | L6: Равные шансы
A7: Кол-во | B7: Разброс результатов | D7: Средн. | F7: Разброс результатов | H7: Средн. | J7: (с выигрыша) | L7: Разброс результатов | N7: Средн. | O7: МО
A8: спинов | B8: с достоверностью | D8: рез-тат (МО) | F8: с достоверностью | H8: рез-тат (МО) | J8: по окончанию | L8: с достоверностью | N8: рез-тат (МО) | O8: (в %)
B9: 2 | C9: Сигмы | D9: (в ставках) | F9: =B9 -> 2 | G9: Сигмы | H9: (в ставках) | J9: сессии | L9: =F9 -> 2 | M9: Сигмы | N9: (в ставках)
A11: 1 | B11: =D11+$B$9*SQRT($D$2*A11) -> 1.972239867 | C11: =D11-$B$9*SQRT($D$2*A11) -> -2.026299867 | D11: =A11*$D$1 -> -0.02703 | F11: =H11+$F$9*SQRT($H$2*A11) -> 2 | G11: =H11-$F$9*SQRT($H$2*A11) -> -2 | H11: =E11*$H$1 -> 0 | J11: =F11*$J$3 -> 0.2 | L11: =F11-J11 -> 1.8 | M11: =G11 -> -2 | N11: =(M11+L11)/2/$L$9 -> -0.05 | O11: =N11/A11*100 -> -5
A12: =A11+1 -> 2 | B12: =D12+$B$9*SQRT($D$2*A12) -> 2.77333456 | C12: =D12-$B$9*SQRT($D$2*A12) -> -2.88145456 | D12: =A12*$D$1 -> -0.05406 | F12: =H12+$F$9*SQRT($H$2*A12) -> 2.828427125 | G12: =H12-$F$9*SQRT($H$2*A12) -> -2.828427125 | H12: =E12*$H$1 -> 0 | J12: 0.2828427125 | L12: =F12-J12 -> 2.545584412 | M12: =G12 -> -2.828427125 | N12: =(M12+L12)/2/$L$9 -> -0.07071067812 | O12: =N12/A12 -> -0.03535533906
A13: =A12+1 -> 3 | B13: 3.381746987 | C13: -3.543926987 | D13: -0.08109 | F13: 3.464101615 | G13: -3.464101615 | H13: 0 | J13: 0.3464101615 | L13: 3.117691454 | M13: -3.464101615 | N13: -0.08660254038 | O13: -0.02886751346
A14: 4 | B14: 3.890419733 | C14: -4.106659733 | D14: -0.10812 | F14: 4 | G14: -4 | H14: 0 | J14: 0.4 | L14: 3.6 | M14: -4 | N14: -0.1 | O14: -0.025
A15: 5 | B15: 4.335353327 | C15: -4.605653327 | D15: -0.13515 | F15: 4.472135955 | G15: -4.472135955 | H15: 0 | J15: 0.4472135955 | L15: 4.024922359 | M15: -4.472135955 | N15: -0.1118033989 | O15: -0.02236067977
A16: 6 | B16: 4.735011032 | C16: -5.059371032 | D16: -0.16218 | F16: 4.898979486 | G16: -4.898979486 | H16: 0 | J16: 0.4898979486 | L16: 4.409081537 | M16: -4.898979486 | N16: -0.1224744871 | O16: -0.02041241452
A17: 7 | B17: 5.100360871 | C17: -5.478780871 | D17: -0.18921 | F17: 5.291502622 | G17: -5.291502622 | H17: 0 | J17: 0.5291502622 | L17: 4.76235236 | M17: -5.291502622 | N17: -0.1322875656 | O17: -0.01889822365
A18: 8 | B18: 5.438549121 | C18: -5.871029121 | D18: -0.21624 | F18: 5.656854249 | G18: -5.656854249 | H18: 0 | J18: 0.5656854249 | L18: 5.091168825 | M18: -5.656854249 | N18: -0.1414213562 | O18: -0.01767766953
A19: 9 | B19: 5.7545396 | C19: -6.2410796 | D19: -0.24327 | F19: 6 | G19: -6 | H19: 0 | J19: 0.6 | L19: 5.4 | M19: -6 | N19: -0.15 | O19: -0.01666666667
A20: 10 | B20: 6.051946436 | C20: -6.592546436 | D20: -0.2703 | F20: 6.32455532 | G20: -6.32455532 | H20: 0 | J20: 0.632455532 | L20: 5.692099788 | M20: -6.32455532 | N20: -0.158113883 | O20: -0.0158113883
A21: 11 | B21: 6.333498003 | C21: -6.928158003 | D21: -0.29733 | F21: 6.633249581 | G21: -6.633249581 | H21: 0 | J21: 0.6633249581 | L21: 5.969924623 | M21: -6.633249581 | N21: -0.1658312395 | O21: -0.01507556723
A22: 12 | B22: 6.601313974 | C22: -7.250033974 | D22: -0.32436 | F22: 6.92820323 | G22: -6.92820323 | H22: 0 | J22: 0.692820323 | L22: 6.235382907 | M22: -6.92820323 | N22: -0.1732050808 | O22: -0.01443375673
A23: 13 | B23: 6.857080018 | C23: -7.559860018 | D23: -0.35139 | F23: 7.211102551 | G23: -7.211102551 | H23: 0 | J23: 0.7211102551 | L23: 6.489992296 | M23: -7.211102551 | N23: -0.1802775638 | O23: -0.01386750491
A24: 14 | B24: 7.102162865 | C24: -7.859002865 | D24: -0.37842 | F24: 7.483314774 | G24: -7.483314774 | H24: 0 | J24: 0.7483314774 | L24: 6.734983296 | M24: -7.483314774 | N24: -0.1870828693 | O24: -0.0133630621 | P24: с достоверностью 1 сигма
A25: 15 | B25: 7.337688898 | C25: -8.148588898 | D25: -0.40545 | F25: 7.745966692 | G25: -7.745966692 | H25: 0 | J25: 0.7745966692 | L25: 6.971370023 | M25: -7.745966692 | N25: -0.1936491673 | O25: -0.01290994449
A26: 16 | B26: 7.564599467 | C26: -8.429559467 | D26: -0.43248 | F26: 8 | G26: -8 | H26: 0 | J26: 0.8 | L26: 7.2 | M26: -8 | N26: -0.2 | O26: -0.0125
A27: 17 | B27: 7.783690835 | C27: -8.702710835 | D27: -0.45951 | F27: 8.246211251 | G27: -8.246211251 | H27: 0 | J27: 0.8246211251 | L27: 7.421590126 | M27: -8.246211251 | N27: -0.2061552813 | O27: -0.01212678125
A28: 18 | B28: 7.995643681 | C28: -8.968723681 | D28: -0.48654 | F28: 8.485281374 | G28: -8.485281374 | H28: 0 | J28: 0.8485281374 | L28: 7.636753237 | M28: -8.485281374 | N28: -0.2121320344 | O28: -0.01178511302
A29: 19 | B29: 8.20104531 | C29: -9.22818531 | D29: -0.51357 | F29: 8.717797887 | G29: -8.717797887 | H29: 0 | J29: 0.8717797887 | L29: 7.846018098 | M29: -8.717797887 | N29: -0.2179449472 | O29: -0.01147078669
A30: 20 | B30: 8.400406655 | C30: -9.481606655 | D30: -0.5406 | F30: 8.94427191 | G30: -8.94427191 | H30: 0 | J30: 0.894427191 | L30: 8.049844719 | M30: -8.94427191 | N30: -0.2236067977 | O30: -0.01118033989
A31: 21 | B31: 8.594175499 | C31: -9.729435499 | D31: -0.56763 | F31: 9.16515139 | G31: -9.16515139 | H31: 0 | J31: 0.916515139 | L31: 8.248636251 | M31: -9.16515139 | N31: -0.2291287847 | O31: -0.01091089451
A32: 22 | B32: 8.782746891 | C32: -9.972066891 | D32: -0.59466 | F32: 9.38083152 | G32: -9.38083152 | H32: 0 | J32: 0.938083152 | L32: 8.442748368 | M32: -9.38083152 | N32: -0.234520788 | O32: -0.01066003582
A33: 23 | B33: 8.96647145 | C33: -10.20985145 | D33: -0.62169 | F33: 9.591663047 | G33: -9.591663047 | H33: 0 | J33: 0.9591663047 | L33: 8.632496742 | M33: -9.591663047 | N33: -0.2397915762 | O33: -0.0104257207
A34: 24 | B34: 9.145662063 | C34: -10.44310206 | D34: -0.64872 | F34: 9.797958971 | G34: -9.797958971 | H34: 0 | J34: 0.9797958971 | L34: 8.818163074 | M34: -9.797958971 | N34: -0.2449489743 | O34: -0.01020620726
A35: 25 | B35: 9.320599334 | C35: -10.67209933 | D35: -0.67575 | F35: 10 | G35: -10 | H35: 0 | J35: 1 | L35: 9 | M35: -10 | N35: -0.25 | O35: -0.01
A36: 26 | B36: 9.491536063 | C36: -10.89709606 | D36: -0.70278 | F36: 10.19803903 | G36: -10.19803903 | H36: 0 | J36: 1.019803903 | L36: 9.178235124 | M36: -10.19803903 | N36: -0.2549509757 | O36: -0.009805806757
A37: 27 | B37: 9.658700962 | C37: -11.11832096 | D37: -0.72981 | F37: 10.39230485 | G37: -10.39230485 | H37: 0 | J37: 1.039230485 | L37: 9.353074361 | M37: -10.39230485 | N37: -0.2598076211 | O37: -0.009622504486
A38: 28 | B38: 9.822301742 | C38: -11.33598174 | D38: -0.75684 | F38: 10.58300524 | G38: -10.58300524 | H38: 0 | J38: 1.058300524 | L38: 9.52470472 | M38: -10.58300524 | N38: -0.2645751311 | O38: -0.009449111825
A39: 29 | B39: 9.982527726 | C39: -11.55026773 | D39: -0.78387 | F39: 10.77032961 | G39: -10.77032961 | H39: 0 | J39: 1.077032961 | L39: 9.693296653 | M39: -10.77032961 | N39: -0.2692582404 | O39: -0.009284766909
A40: 30 | B40: 10.13955205 | C40: -11.76135205 | D40: -0.8109 | F40: 10.95445115 | G40: -10.95445115 | H40: 0 | J40: 1.095445115 | L40: 9.859006035 | M40: -10.95445115 | N40: -0.2738612788 | O40: -0.009128709292
A41: 31 | B41: 10.29353352 | C41: -11.96939352 | D41: -0.83793 | F41: 11.13552873 | G41: -11.13552873 | H41: 0 | J41: 1.113552873 | L41: 10.02197585 | M41: -11.13552873 | N41: -0.2783882181 | O41: -0.008980265101
A42: 32 | B42: 10.44461824 | C42: -12.17453824 | D42: -0.86496 | F42: 11.3137085 | G42: -11.3137085 | H42: 0 | J42: 1.13137085 | L42: 10.18233765 | M42: -11.3137085 | N42: -0.2828427125 | O42: -0.008838834765
A43: 33 | B43: 10.592941 | C43: -12.376921 | D43: -0.89199 | F43: 11.48912529 | G43: -11.48912529 | H43: 0 | J43: =F43*$J$3 -> 1.148912529 | L43: 10.34021276 | M43: -11.48912529 | N43: -0.2872281323 | O43: -0.008703882798
A44: 34 | B44: 10.73862642 | C44: -12.57666642 | D44: -0.91902 | F44: 11.66190379 | G44: -11.66190379 | H44: 0 | J44: 1.166190379 | L44: 10.49571341 | M44: -11.66190379 | N44: -0.2915475947 | O44: -0.008574929257
A45: 35 | B45: 10.88179004 | C45: -12.77389004 | D45: -0.94605 | F45: 11.83215957 | G45: -11.83215957 | H45: 0 | J45: 1.183215957 | L45: 10.64894361 | M45: -11.83215957 | N45: -0.2958039892 | O45: -0.008451542547
A46: 36 | B46: 11.0225392 | C46: -12.9686992 | D46: -0.97308 | F46: 12 | G46: -12 | H46: 0 | J46: 1.2 | L46: 10.8 | M46: -12 | N46: -0.3 | O46: -0.008333333333
A47: 37 | B47: 11.16097383 | C47: -13.16119383 | D47: -1.00011 | F47: 12.16552506 | G47: -12.16552506 | H47: 0 | J47: 1.216552506 | L47: 10.94897255 | M47: -12.16552506 | N47: -0.3041381265 | O47: -0.008219949365
A48: 38 | B48: 11.29718716 | C48: -13.35146716 | D48: -1.02714 | F48: 12.32882801 | G48: -12.32882801 | H48: 0 | J48: 1.232882801 | L48: 11.09594521 | M48: -12.32882801 | N48: -0.3082207001 | O48: -0.008111071057
A49: 39 | B49: 11.43126632 | C49: -13.53960632 | D49: -1.05417 | F49: 12.489996 | G49: -12.489996 | H49: 0 | J49: 1.2489996 | L49: 11.2409964 | M49: -12.489996 | N49: -0.3122498999 | O49: -0.00800640769
A50: 40 | B50: 11.56329287 | C50: -13.72569287 | D50: -1.0812 | F50: 12.64911064 | G50: -12.64911064 | H50: 0 | J50: 1.264911064 | L50: 11.38419958 | M50: -12.64911064 | N50: -0.316227766 | O50: -0.00790569415
A51: 41 | B51: 11.69334334 | C51: -13.90980334 | D51: -1.10823 | F51: 12.80624847 | G51: -12.80624847 | H51: 0 | J51: 1.280624847 | L51: 11.52562363 | M51: -12.80624847 | N51: -0.3201562119 | O51: -0.007808688094
A52: 42 | B52: 11.82148959 | C52: -14.09200959 | D52: -1.13526 | F52: 12.9614814 | G52: -12.9614814 | H52: 0 | J52: 1.29614814 | L52: 11.66533326 | M52: -12.9614814 | N52: -0.3240370349 | O52: -0.007715167498
A53: 43 | B53: 11.94779924 | C53: -14.27237924 | D53: -1.16229 | F53: 13.11487705 | G53: -13.11487705 | H53: 0 | J53: 1.311487705 | L53: 11.80338934 | M53: -13.11487705 | N53: -0.3278719262 | O53: -0.007624928517
A54: 44 | B54: 12.07233601 | C54: -14.45097601 | D54: -1.18932 | F54: 13.26649916 | G54: -13.26649916 | H54: 0 | J54: 1.326649916 | L54: 11.93984925 | M54: -13.26649916 | N54: -0.331662479 | O54: -0.007537783614
A55: 45 | B55: 12.19515998 | C55: -14.62785998 | D55: -1.21635 | F55: 13.41640786 | G55: -13.41640786 | H55: 0 | J55: 1.341640786 | L55: 12.07476708 | M55: -13.41640786 | N55: -0.3354101966 | O55: -0.007453559925
A56: 46 | B56: 12.31632796 | C56: -14.80308796 | D56: -1.24338 | F56: 13.56465997 | G56: -13.56465997 | H56: 0 | J56: 1.356465997 | L56: 12.20819397 | M56: -13.56465997 | N56: -0.3391164992 | O56: -0.007372097808
A57: 47 | B57: 12.43589366 | C57: -14.97671366 | D57: -1.27041 | F57: 13.7113092 | G57: -13.7113092 | H57: 0 | J57: 1.37113092 | L57: 12.34017828 | M57: -13.7113092 | N57: -0.34278273 | O57: -0.007293249575
A58: 48 | B58: 12.55390795 | C58: -15.14878795 | D58: -1.29744 | F58: 13.85640646 | G58: -13.85640646 | H58: 0 | J58: 1.385640646 | L58: 12.47076581 | M58: -13.85640646 | N58: -0.3464101615 | O58: -0.007216878365
A59: 49 | B59: 12.67041907 | C59: -15.31935907 | D59: -1.32447 | F59: 14 | G59: -14 | H59: 0 | J59: 1.4 | L59: 12.6 | M59: -14 | N59: -0.35 | O59: -0.007142857143
A60: 50 | B60: 12.7854728 | C60: -15.4884728 | D60: -1.3515 | F60: 14.14213562 | G60: -14.14213562 | H60: 0 | J60: 1.414213562 | L60: 12.72792206 | M60: -14.14213562 | N60: -0.3535533906 | O60: -0.007071067812
A61: 51 | B61: 12.89911266 | C61: -15.65617266 | D61: -1.37853 | F61: 14.28285686 | G61: -14.28285686 | H61: 0 | J61: 1.428285686 | L61: 12.85457117 | M61: -14.28285686 | N61: -0.3570714214 | O61: -0.00700140042
A62: 52 | B62: 13.01138004 | C62: -15.82250004 | D62: -1.40556 | F62: 14.4222051 | G62: -14.4222051 | H62: 0 | J62: 1.44222051 | L62: 12.97998459 | M62: -14.4222051 | N62: -0.3605551275 | O62: -0.006933752453
A63: 53 | B63: 13.12231433 | C63: -15.98749433 | D63: -1.43259 | F63: 14.56021978 | G63: -14.56021978 | H63: 0 | J63: 1.456021978 | L63: 13.1041978 | M63: -14.56021978 | N63: -0.3640054945 | O63: -0.006868028197
A64: 54 | B64: 13.23195309 | C64: -16.15119309 | D64: -1.45962 | F64: 14.69693846 | G64: -14.69693846 | H64: 0 | J64: 1.469693846 | L64: 13.22724461 | M64: -14.69693846 | N64: -0.3674234614 | O64: -0.006804138174
A65: 55 | B65: 13.34033216 | C65: -16.31363216 | D65: -1.48665 | F65: 14.83239697 | G65: -14.83239697 | H65: 0 | J65: 1.483239697 | L65: 13.34915728 | M65: -14.83239697 | N65: -0.3708099244 | O65: -0.006741998625 | P65: с достоверностью в 2 сигмы
A66: 56 | B66: 13.44748573 | C66: -16.47484573 | D66: -1.51368 | F66: 14.96662955 | G66: -14.96662955 | H66: 0 | J66: 1.496662955 | L66: 13.46996659 | M66: -14.96662955 | N66: -0.3741657387 | O66: -0.006681531048
A67: 57 | B67: 13.55344649 | C67: -16.63486649 | D67: -1.54071 | F67: 15.09966887 | G67: -15.09966887 | H67: 0 | J67: 1.509966887 | L67: 13.58970198 | M67: -15.09966887 | N67: -0.3774917218 | O67: -0.006622661785
A68: 58 | B68: 13.65824568 | C68: -16.79372568 | D68: -1.56774 | F68: 15.23154621 | G68: -15.23154621 | H68: 0 | J68: 1.523154621 | L68: 13.70839159 | M68: -15.23154621 | N68: -0.3807886553 | O68: -0.006565321643
A69: 59 | B69: 13.76191324 | C69: -16.95145324 | D69: -1.59477 | F69: 15.3622915 | G69: -15.3622915 | H69: 0 | J69: 1.53622915 | L69: 13.82606235 | M69: -15.3622915 | N69: -0.3840572874 | O69: -0.006509445549
A70: 60 | B70: 13.8644778 | C70: -17.1080778 | D70: -1.6218 | F70: 15.49193338 | G70: -15.49193338 | H70: 0 | J70: 1.549193338 | L70: 13.94274005 | M70: -15.49193338 | N70: -0.3872983346 | O70: -0.006454972244
A71: 61 | B71: 13.96596683 | C71: -17.26362683 | D71: -1.64883 | F71: 15.62049935 | G71: -15.62049935 | H71: 0 | J71: 1.562049935 | L71: 14.05844942 | M71: -15.62049935 | N71: -0.3905124838 | O71: -0.006401843997
A72: 62 | B72: 14.06640667 | C72: -17.41812667 | D72: -1.67586 | F72: 15.74801575 | G72: -15.74801575 | H72: 0 | J72: 1.574801575 | L72: 14.17321417 | M72: -15.74801575 | N72: -0.3937003937 | O72: -0.00635000635
A73: 63 | B73: 14.16582261 | C73: -17.57160261 | D73: -1.70289 | F73: 15.87450787 | G73: -15.87450787 | H73: 0 | J73: 1.587450787 | L73: 14.28705708 | M73: -15.87450787 | N73: -0.3968626967 | O73: -0.006299407883
A74: 64 | B74: 14.26423893 | C74: -17.72407893 | D74: -1.72992 | F74: 16 | G74: -16 | H74: 0 | J74: 1.6 | L74: 14.4 | M74: -16 | N74: -0.4 | O74: -0.00625
A75: 65 | B75: 14.36167897 | C75: -17.87557897 | D75: -1.75695 | F75: 16.1245155 | G75: -16.1245155 | H75: 0 | J75: =F75*$J$3 -> 1.61245155 | L75: 14.51206395 | M75: -16.1245155 | N75: -0.4031128874 | O75: -0.006201736729
A76: 66 | B76: =D76+$B$9*SQRT($D$2*A76) -> 14.45816518 | C76: =D76-$B$9*SQRT($D$2*A76) -> -18.02612518 | D76: =A76*$D$1 -> -1.78398 | F76: =H76+$F$9*SQRT($H$2*A76) -> 16.24807681 | G76: =H76-$F$9*SQRT($H$2*A76) -> -16.24807681 | H76: =E76*$H$1 -> 0 | J76: 1.624807681 | L76: =F76-J76 -> 14.62326913 | M76: =G76 -> -16.24807681 | N76: =(M76+L76)/2/$L$9 -> -0.4062019202 | O76: =N76/A76 -> -0.006154574549
A77: =A76+1 -> 67 | B77: 14.55371915 | C77: -18.17573915 | D77: -1.81101 | F77: 16.37070554 | G77: -16.37070554 | H77: 0 | J77: 1.637070554 | L77: 14.73363499 | M77: -16.37070554 | N77: -0.4092676386 | O77: -0.006108472218
A78: 68 | B78: 14.64836167 | C78: -18.32444167 | D78: -1.83804 | F78: 16.4924225 | G78: -16.4924225 | H78: 0 | J78: 1.64924225 | L78: 14.84318025 | M78: -16.4924225 | N78: -0.4123105626 | O78: -0.006063390626
A79: 69 | B79: 14.74211278 | C79: -18.47225278 | D79: -1.86507 | F79: 16.61324773 | G79: -16.61324773 | H79: 0 | J79: 1.661324773 | L79: 14.95192295 | M79: -16.61324773 | N79: -0.4153311931 | O79: -0.006019292654
A80: 70 | B80: 14.8349918 | C80: -18.6191918 | D80: -1.8921 | F80: 16.73320053 | G80: -16.73320053 | H80: 0 | J80: 1.673320053 | L80: 15.05988048 | M80: -16.73320053 | N80: -0.4183300133 | O80: -0.005976143047
A81: 71 | B81: 14.92701733 | C81: -18.76527733 | D81: -1.91913 | F81: 16.85229955 | G81: -16.85229955 | H81: 0 | J81: 1.685229955 | L81: 15.16706959 | M81: -16.85229955 | N81: -0.4213074887 | O81: -0.005933908291
A82: 72 | B82: 15.01820736 | C82: -18.91052736 | D82: -1.94616 | F82: 16.97056275 | G82: -16.97056275 | H82: 0 | J82: 1.697056275 | L82: 15.27350647 | M82: -16.97056275 | N82: -0.4242640687 | O82: -0.00589255651
A83: 73 | B83: 15.10857923 | C83: -19.05495923 | D83: -1.97319 | F83: 17.08800749 | G83: -17.08800749 | H83: 0 | J83: 1.708800749 | L83: 15.37920674 | M83: -17.08800749 | N83: -0.4272001873 | O83: -0.00585205736
A84: 74 | B84: 15.19814969 | C84: -19.19858969 | D84: -2.00022 | F84: 17.20465053 | G84: -17.20465053 | H84: 0 | J84: 1.720465053 | L84: 15.48418548 | M84: -17.20465053 | N84: -0.4301162634 | O84: -0.005812381937
A85: 75 | B85: 15.28693494 | C85: -19.34143494 | D85: -2.02725 | F85: 17.32050808 | G85: -17.32050808 | H85: 0 | J85: 1.732050808 | L85: 15.58845727 | M85: -17.32050808 | N85: -0.4330127019 | O85: -0.005773502692
A86: 76 | B86: 15.37495062 | C86: -19.48351062 | D86: -2.05428 | F86: 17.43559577 | G86: -17.43559577 | H86: 0 | J86: 1.743559577 | L86: 15.6920362 | M86: -17.43559577 | N86: -0.4358898944 | O86: -0.005735393347
A87: 77 | B87: 15.46221188 | C87: -19.62483188 | D87: -2.08131 | F87: 17.54992877 | G87: -17.54992877 | H87: 0 | J87: 1.754992877 | L87: 15.7949359 | M87: -17.54992877 | N87: -0.4387482194 | O87: -0.005698028823
A88: 78 | B88: 15.54873337 | C88: -19.76541337 | D88: -2.10834 | F88: 17.66352173 | G88: -17.66352173 | H88: 0 | J88: 1.766352173 | L88: 15.89716956 | M88: -17.66352173 | N88: -0.4415880433 | O88: -0.005661385171
A89: 79 | B89: 15.63452927 | C89: -19.90526927 | D89: -2.13537 | F89: 17.77638883 | G89: -17.77638883 | H89: 0 | J89: 1.777638883 | L89: 15.99874995 | M89: -17.77638883 | N89: -0.4444097209 | O89: -0.005625439505
A90: 80 | B90: 15.71961331 | C90: -20.04441331 | D90: -2.1624 | F90: 17.88854382 | G90: -17.88854382 | H90: 0 | J90: 1.788854382 | L90: 16.09968944 | M90: -17.88854382 | N90: -0.4472135955 | O90: -0.005590169944
A91: 81 | B91: 15.8039988 | C91: -20.1828588 | D91: -2.18943 | F91: 18 | G91: -18 | H91: 0 | J91: 1.8 | L91: 16.2 | M91: -18 | N91: -0.45 | O91: -0.005555555556
A92: 82 | B92: 15.88769864 | C92: -20.32061864 | D92: -2.21646 | F92: 18.11077028 | G92: -18.11077028 | H92: 0 | J92: 1.811077028 | L92: 16.29969325 | M92: -18.11077028 | N92: -0.4527692569 | O92: -0.005521576304
A93: 83 | B93: 15.97072533 | C93: -20.45770533 | D93: -2.24349 | F93: 18.22086716 | G93: -18.22086716 | H93: 0 | J93: 1.822086716 | L93: 16.39878044 | M93: -18.22086716 | N93: -0.455521679 | O93: -0.005488212999
A94: 84 | B94: 16.053091 | C94: -20.594131 | D94: -2.27052 | F94: 18.33030278 | G94: -18.33030278 | H94: 0 | J94: 1.833030278 | L94: 16.4972725 | M94: -18.33030278 | N94: -0.4582575695 | O94: -0.005455447256
A95: 85 | B95: 16.13480742 | C95: -20.72990742 | D95: -2.29755 | F95: 18.43908891 | G95: -18.43908891 | H95: 0 | J95: 1.843908891 | L95: 16.59518002 | M95: -18.43908891 | N95: -0.4609772229 | O95: -0.005423261445
A96: 86 | B96: 16.21588601 | C96: -20.86504601 | D96: -2.32458 | F96: 18.54723699 | G96: -18.54723699 | H96: 0 | J96: 1.854723699 | L96: 16.69251329 | M96: -18.54723699 | N96: -0.4636809248 | O96: -0.00539163866
A97: 87 | B97: 16.29633788 | C97: -20.99955788 | D97: -2.35161 | F97: 18.65475811 | G97: -18.65475811 | H97: 0 | J97: 1.865475811 | L97: 16.7892823 | M97: -18.65475811 | N97: -0.4663689527 | O97: -0.005360562674
A98: 88 | B98: 16.37617378 | C98: -21.13345378 | D98: -2.37864 | F98: 18.76166304 | G98: -18.76166304 | H98: 0 | J98: 1.876166304 | L98: 16.88549674 | M98: -18.76166304 | N98: -0.469041576 | O98: -0.005330017909
A99: 89 | B99: 16.4554042 | C99: -21.2667442 | D99: -2.40567 | F99: 18.86796226 | G99: -18.86796226 | H99: 0 | J99: 1.886796226 | L99: 16.98116604 | M99: -18.86796226 | N99: -0.4716990566 | O99: -0.0052999894
A100: 90 | B100: 16.53403931 | C100: -21.39943931 | D100: -2.4327 | F100: 18.97366596 | G100: -18.97366596 | H100: 0 | J100: 1.897366596 | L100: 17.07629936 | M100: -18.97366596 | N100: -0.474341649 | O100: -0.005270462767
A101: 91 | B101: 16.612089 | C101: -21.531549 | D101: -2.45973 | F101: 19.07878403 | G101: -19.07878403 | H101: 0 | J101: 1.907878403 | L101: 17.17090563 | M101: -19.07878403 | N101: -0.4769696007 | O101: -0.005241424184
A102: 92 | B102: 16.6895629 | C102: -21.6630829 | D102: -2.48676 | F102: 19.18332609 | G102: -19.18332609 | H102: 0 | J102: 1.918332609 | L102: 17.26499348 | M102: -19.18332609 | N102: -0.4795831523 | O102: -0.005212860351
A103: 93 | B103: 16.76647037 | C103: -21.79405037 | D103: -2.51379 | F103: 19.28730152 | G103: -19.28730152 | H103: 0 | J103: 1.928730152 | L103: 17.35857137 | M103: -19.28730152 | N103: -0.482182538 | O103: -0.005184758474
A104: 94 | B104: 16.84282052 | C104: -21.92446052 | D104: -2.54082 | F104: 19.39071943 | G104: -19.39071943 | H104: 0 | J104: 1.939071943 | L104: 17.45164749 | M104: -19.39071943 | N104: -0.4847679857 | O104: -0.005157106231
A105: 95 | B105: 16.91862223 | C105: -22.05432223 | D105: -2.56785 | F105: 19.49358869 | G105: -19.49358869 | H105: 0 | J105: 1.949358869 | L105: 17.54422982 | M105: -19.49358869 | N105: -0.4873397172 | O105: -0.00512989176
A106: 96 | B106: 16.99388413 | C106: -22.18364413 | D106: -2.59488 | F106: 19.59591794 | G106: -19.59591794 | H106: 0 | J106: 1.959591794 | L106: 17.63632615 | M106: -19.59591794 | N106: -0.4898979486 | O106: -0.005103103631
A107: 97 | B107: 17.06861462 | C107: -22.31243462 | D107: -2.62191 | F107: 19.6977156 | G107: -19.6977156 | H107: 0 | J107: =F107*$J$3 -> 1.96977156 | L107: 17.72794404 | M107: -19.6977156 | N107: -0.4924428901 | O107: -0.005076730826
A108: 98 | B108: 17.14282192 | C108: -22.44070192 | D108: -2.64894 | F108: 19.79898987 | G108: -19.79898987 | H108: 0 | J108: 1.979898987 | L108: 17.81909089 | M108: -19.79898987 | N108: -0.4949747468 | O108: -0.005050762723
A109: 99 | B109: 17.21651401 | C109: -22.56845401 | D109: -2.67597 | F109: 19.89974874 | G109: -19.89974874 | H109: 0 | J109: 1.989974874 | L109: 17.90977387 | M109: -19.89974874 | N109: -0.4974937186 | O109: -0.005025189076
A110: 100 | B110: 17.28969867 | C110: -22.69569867 | D110: -2.703 | F110: 20 | G110: -20 | H110: 0 | J110: 2 | L110: 18 | M110: -20 | N110: -0.5 | O110: -0.005
A111: 101 | B111: 17.36238349 | C111: -22.82244349 | D111: -2.73003 | F111: 20.09975124 | G111: -20.09975124 | H111: 0 | J111: 2.009975124 | L111: 18.08977612 | M111: -20.09975124 | N111: -0.5024937811 | O111: -0.004975185951
A112: 102 | B112: 17.43457589 | C112: -22.94869589 | D112: -2.75706 | F112: 20.19900988 | G112: -20.19900988 | H112: 0 | J112: 2.019900988 | L112: 18.17910889 | M112: -20.19900988 | N112: -0.5049752469 | O112: -0.004950737715
A113: 103 | B113: 17.50628309 | C113: -23.07446309 | D113: -2.78409 | F113: 20.29778313 | G113: -20.29778313 | H113: 0 | J113: 2.029778313 | L113: 18.26800482 | M113: -20.29778313 | N113: -0.5074445783 | O113: -0.004926646391
A114: 104 | B114: 17.57751213 | C114: -23.19975213 | D114: -2.81112 | F114: 20.39607805 | G114: -20.39607805 | H114: 0 | J114: 2.039607805 | L114: 18.35647025 | M114: -20.39607805 | N114: -0.5099019514 | O114: -0.004902903378
A115: 105 | B115: 17.64826989 | C115: -23.32456989 | D115: -2.83815 | F115: 20.49390153 | G115: -20.49390153 | H115: 0 | J115: 2.049390153 | L115: 18.44451138 | M115: -20.49390153 | N115: -0.5123475383 | O115: -0.004879500365
A116: 106 | B116: 17.7185631 | C116: -23.4489231 | D116: -2.86518 | F116: 20.59126028 | G116: -20.59126028 | H116: 0 | J116: 2.059126028 | L116: 18.53213425 | M116: -20.59126028 | N116: -0.514781507 | O116: -0.004856429312
A117: 107 | B117: 17.78839831 | C117: -23.57281831 | D117: -2.89221 | F117: 20.68816087 | G117: -20.68816087 | H117: 0 | J117: 2.068816087 | L117: 18.61934478 | M117: -20.68816087 | N117: -0.5172040216 | O117: -0.004833682445
A118: 108 | B118: 17.85778192 | C118: -23.69626192 | D118: -2.91924 | F118: 20.78460969 | G118: -20.78460969 | H118: 0 | J118: 2.078460969 | L118: 18.70614872 | M118: -20.78460969 | N118: -0.5196152423 | O118: -0.004811252243
A119: 109 | B119: 17.9267202 | C119: -23.8192602 | D119: -2.94627 | F119: 20.88061302 | G119: -20.88061302 | H119: 0 | J119: 2.088061302 | L119: 18.79255172 | M119: -20.88061302 | N119: -0.5220153254 | O119: -0.004789131426
A120: 110 | B120: 17.99521926 | C120: -23.94181926 | D120: -2.9733 | F120: 20.97617696 | G120: -20.97617696 | H120: 0 | J120: 2.097617696 | L120: 18.87855927 | M120: -20.97617696 | N120: -0.5244044241 | O120: -0.004767312946
A121: 111 | B121: 18.06328507 | C121: -24.06394507 | D121: -3.00033 | F121: 21.07130751 | G121: -21.07130751 | H121: 0 | J121: 2.107130751 | L121: 18.96417676 | M121: -21.07130751 | N121: -0.5267826876 | O121: -0.004745789979
A122: 112 | B122: 18.13092348 | C122: -24.18564348 | D122: -3.02736 | F122: 21.16601049 | G122: -21.16601049 | H122: 0 | J122: 2.116601049 | L122: 19.04940944 | M122: -21.16601049 | N122: -0.5291502622 | O122: -0.004724555913
A123: 113 | B123: 18.1981402 | C123: -24.3069202 | D123: -3.05439 | F123: 21.26029163 | G123: -21.26029163 | H123: 0 | J123: 2.126029163 | L123: 19.13426246 | M123: -21.26029163 | N123: -0.5315072906 | O123: -0.004703604342
A124: 114 | B124: 18.26494081 | C124: -24.42778081 | D124: -3.08142 | F124: 21.3541565 | G124: -21.3541565 | H124: 0 | J124: 2.13541565 | L124: 19.21874085 | M124: -21.3541565 | N124: -0.5338539126 | O124: -0.004682929058
A125: 115 | B125: 18.33133078 | C125: -24.54823078 | D125: -3.10845 | F125: 21.44761059 | G125: -21.44761059 | H125: 0 | J125: 2.144761059 | L125: 19.30284953 | M125: -21.44761059 | N125: -0.5361902647 | O125: -0.004662524041
A126: 116 | B126: 18.39731545 | C126: -24.66827545 | D126: -3.13548 | F126: 21.54065923 | G126: -21.54065923 | H126: 0 | J126: 2.154065923 | L126: 19.38659331 | M126: -21.54065923 | N126: -0.5385164807 | O126: -0.004642383454
A127: 117 | B127: 18.46290005 | C127: -24.78792005 | D127: -3.16251 | F127: 21.63330765 | G127: -21.63330765 | H127: 0 | J127: 2.163330765 | L127: 19.46997689 | M127: -21.63330765 | N127: -0.5408326913 | O127: -0.004622501635
A128: 118 | B128: 18.5280897 | C128: -24.9071697 | D128: -3.18954 | F128: 21.72556098 | G128: -21.72556098 | H128: 0 | J128: 2.172556098 | L128: 19.55300488 | M128: -21.72556098 | N128: -0.5431390246 | O128: -0.004602873089
A129: 119 | B129: 18.59288942 | C129: -25.02602942 | D129: -3.21657 | F129: 21.81742423 | G129: -21.81742423 | H129: 0 | J129: 2.181742423 | L129: 19.63568181 | M129: -21.81742423 | N129: -0.5454356057 | O129: -0.004583492485
A130: 120 | B130: 18.65730409 | C130: -25.14450409 | D130: -3.2436 | F130: 21.9089023 | G130: -21.9089023 | H130: 0 | J130: 2.19089023 | L130: 19.71801207 | M130: -21.9089023 | N130: -0.5477225575 | O130: -0.004564354646
A131: 121 | B131: 18.72133853 | C131: -25.26259853 | D131: -3.27063 | F131: 22 | G131: -22 | H131: 0 | J131: 2.2 | L131: 19.8 | M131: -22 | N131: -0.55 | O131: -0.004545454545
A132: 122 | B132: 18.78499745 | C132: -25.38031745 | D132: -3.29766 | F132: 22.09072203 | G132: -22.09072203 | H132: 0 | J132: 2.209072203 | L132: 19.88164983 | M132: -22.09072203 | N132: -0.5522680509 | O132: -0.004526787302 | P132: с достоверностью в 3 сигмы
A133: 123 | B133: 18.84828544 | C133: -25.49766544 | D133: -3.32469 | F133: 22.18107301 | G133: -22.18107301 | H133: 0 | J133: 2.218107301 | L133: 19.96296571 | M133: -22.18107301 | N133: -0.5545268253 | O133: -0.004508348173
B136: Примечание:
B137: 1. Расчет ведется для равных шансов.
B138: 2. В желтые клетки ставим что надо
B139: 3. Считаем средний результат и отклонения на обычной рулетке (в ставках)
B140: 4. Считаем среднее и отклонения на рулетке без зеро (в ставках)
B141: 5. Считаем комиссию заведения с выигрыша.
B142: 6. Вычитаем из выигрыша (верхняя ветвь параболы) комисиию заведения.
B143: 7. Находим (по верхней ветви параболы) равновесные точки при разных уровнях достоверности (1,2,3 сигмы)
B144: 8. Количество спинов в этих точках, соответствует длинне сессии, которая необходима
B145: для того, что бы результаты игры не были хуже, чем при игре в обычную рулетку (с заданной достоверностью)
B146: 9. Нижнею ветвь параболы оставляем прежней (как в рулетке без зеро)
B147: 10.Для интереса можно рассчитать МО (в ставках и в %) обратным счетом. Здесь можно еще подумать, как правильно считать.

Sheet Лист2

Sheet Лист3
